bitfinex/quotes_SOLUSD_20260201
["timestamp","ask_amount","ask_price","bid_price","bid_amount"]
[1769968496642,13.30778839,102.24,102.2,14.12683764]
[1769968496847,13.30778839,102.24,102.2,38.58867717]
[1769968497741,13.30778839,102.23,102.2,9.78464752]
[1769968497945,4.12387864,102.23,102.2,9.78464752]
[1769968498237,13.30778839,102.24,102.2,14.1276874]
[1769968500260,4.12387864,102.22,102.2,9.78464752]
[1769968500456,9.78091981,102.24,102.18,9.18390975]
[1769968500457,13.30778839,102.21,102.18,9.78608751]
[1769968500760,13.30778839,102.2,102.17,14.13023692]
[1769968500944,9.18390975,102.19,102.16,14.1311267]
[1769968501454,13.30778839,102.17,102.13,28.81993354]
[1769968501667,9.18390975,102.16,102.13,14.13409227]
[1769968502260,9.18390975,102.15,102.12,14.13500679]
[1769968502554,13.30778839,102.15,102.13,9.79143605]
[1769968502856,24.46712381,102.18,102.14,4.34303988]
[1769968502857,9.18390975,102.18,102.14,4.34303988]
[1769968503049,13.30778839,102.18,102.14,4.34303988]
[1769968503354,9.18390975,102.18,102.15,4.34303988]
[1769968504151,9.18390975,102.18,102.15,14.13176508]
[1769968504355,13.30778839,102.18,102.15,9.7887252]
[1769968505245,4.12387864,102.18,102.15,9.7887252]
[1769968505446,13.30778839,102.19,102.15,38.6055781]
[1769968506259,9.18390975,102.17,102.14,14.13324145]
[1769968507850,13.50353338,102.17,102.14,14.13324145]
[1769968510664,13.50353338,102.15,102.12,9.79173916]
[1769968511042,13.50353338,102.14,102.11,4.37695471]
[1769968511247,9.18390975,102.13,102.1,6.05476579]
[1769968511547,9.18390975,102.16,102.12,4.37695471]
[1769968512062,13.50353338,102.18,102.13,4.37695471]
[1769968512441,9.18390975,102.17,102.13,4.37695471]
[1769968512866,13.50353338,102.18,102.14,14.16743835]
[1769968513261,9.18390975,102.17,102.14,38.64364747]
[1769968513757,13.50353338,102.18,102.14,38.64364747]
[1769968516064,4.31962363,102.21,102.16,4.37695471]
[1769968516260,4.31962363,102.2,102.16,4.37695471]
[1769968516850,4.31962363,102.2,102.17,9.78760888]
[1769968517851,13.50353338,102.2,102.16,14.16508478]
[1769968518046,13.50353338,102.17,102.14,9.79046751]
[1769968518246,13.50353338,102.17,102.15,9.78932542]
[1769968518673,13.50353338,102.17,102.14,9.78998589]
[1769968519162,13.50353338,102.17,102.14,14.1669406]
[1769968520590,13.50353338,102.17,102.14,9.78998589]
[1769968520876,13.50353338,102.15,102.13,9.79137631]
[1769968521645,9.18390975,102.16,102.14,4.37695471]
[1769968521858,9.18390975,102.19,102.14,4.37695471]
[1769968522961,9.18390975,102.18,102.14,4.37695471]
[1769968523161,9.18390975,102.18,102.15,9.7895252]
[1769968523670,13.50353338,102.18,102.15,9.7895252]
[1769968523858,9.18390975,102.16,102.13,14.16780485]
[1769968524057,9.18390975,102.16,102.14,9.79045089]
[1769968524770,13.50353338,102.17,102.14,9.79045089]
[1769968526476,13.50353338,102.15,102.12,4.37695471]
[1769968526674,13.50353338,102.14,102.1,1.67781108]
[1769968526981,9.18390975,102.13,102.1,6.05476579]
[1769968527172,9.18390975,102.13,102.1,15.84834014]
[1769968528181,13.50353338,102.14,102.11,4.37695471]
[1769968528352,13.50353338,102.14,102.1,40.33413837]
[1769968528773,9.18390975,102.13,102.1,15.84834014]
[1769968529475,13.50353338,102.14,102.1,15.84834014]
[1769968529671,23.29411095,102.14,102.1,15.84834014]
[1769968529872,13.50353338,102.12,102.1,1.67781108]
[1769968530252,4.31962363,102.1,102.06,14.17470052]
[1769968530456,13.50353338,102.1,102.07,9.79699507]
[1769968531064,13.50353338,102.1,102.07,14.17394978]
[1769968531269,9.18390975,102.12,102.09,14.17174216]
[1769968532154,9.18390975,102.15,102.11,4.37695471]
[1769968532359,9.18390975,102.13,102.1,4.37695471]
[1769968533363,9.18390975,102.13,102.1,14.17066053]
[1769968534174,13.50353338,102.13,102.1,9.79370582]
[1769968534904,13.50353338,102.11,102.09,9.79481895]
[1769968535191,4.31962363,102.12,102.09,14.17177366]
[1769968535477,13.50353338,102.13,102.1,9.79416862]
[1769968536178,9.18390975,102.14,102.11,4.37695471]
[1769968537270,13.50353338,102.15,102.11,4.37695471]
[1769968537471,13.50353338,102.15,102.12,9.79240109]
[1769968539876,9.18390975,102.14,102.11,14.16978693]
[1769968540286,4.15555122,102.11,102.06,9.79767426]
[1769968540467,9.18390975,102.08,102.06,9.79767426]
[1769968540666,13.33946097,102.09,102.06,9.79767426]
[1769968541870,9.18390975,102.08,102.06,9.79767426]
[1769968542185,9.18390975,102.1,102.07,4.49604896]
[1769968542488,9.18390975,102.11,102.07,4.49604896]
[1769968543368,9.18390975,102.11,102.08,14.2922872]
[1769968546363,9.18390975,102.1,102.07,4.06630753]
[1769968546986,9.18390975,102.11,102.07,4.06630753]
[1769968547288,13.59286381,102.13,102.08,4.06630753]
[1769968547479,9.18390975,102.12,102.08,4.06630753]
[1769968548373,9.22487507,102.12,102.09,9.79527867]
[1769968550091,9.22487507,102.12,102.09,13.8615862]
[1769968550296,9.22487507,102.13,102.1,4.06630753]
[1769968550583,9.22487507,102.12,102.1,4.06630753]
[1769968551182,13.63382913,102.13,102.1,4.06630753]
[1769968551402,13.63382913,102.13,102.1,13.85981335]
[1769968551785,9.22487507,102.13,102.1,38.34561158]
[1769968551990,9.22487507,102.14,102.11,4.06630753]
[1769968553378,9.22487507,102.14,102.12,9.79240109]
[1769968553580,9.22487507,102.13,102.11,11.51760762]
[1769968554076,9.22487507,102.13,102.11,9.79312903]
[1769968554296,9.22487507,102.12,102.1,9.79411574]
[1769968555393,13.63382913,102.13,102.08,34.28536486]
[1769968555590,13.63382913,102.13,102.09,4.06630753]
[1769968557395,13.63382913,102.13,102.1,9.79431929]
[1769968557795,4.40895406,102.13,102.1,9.79431929]
[1769968558093,13.63382913,102.13,102.1,9.79431929]
[1769968558474,4.40895406,102.12,102.08,4.06630753]
[1769968558698,13.63382913,102.11,102.08,13.86201012]
[1769968560288,13.63382913,102.11,102.08,4.06630753]
[1769968560478,23.42743643,102.11,102.08,4.06630753]
[1769968560680,23.42743643,102.11,102.08,13.86251884]
[1769968561299,13.63382913,102.11,102.08,13.86251884]
[1769968563297,4.40895406,102.1,102.07,9.79663397]
[1769968563490,4.40895406,102.09,102.06,13.86399792]
[1769968563696,13.63382913,102.1,102.06,13.86399792]
[1769968563899,13.63382913,102.1,102.07,9.79702485]
[1769968564600,4.40895406,102.1,102.07,9.79702485]
[1769968565103,23.42580784,102.13,102.08,4.06630753]
[1769968565306,13.63382913,102.12,102.08,4.06630753]
[1769968565697,13.63382913,102.11,102.08,4.06630753]
[1769968566001,4.40895406,102.09,102.06,13.86395123]
[1769968566400,4.40895406,102.06,102.02,4.26630753]
[1769968566588,13.63382913,102.05,102.02,0.2]
[1769968566791,13.63382913,102.06,102.03,4.06630753]
[1769968567611,13.63382913,102.06,102.02,14.39607523]
[1769968568794,9.22487507,102.05,102.02,14.39607523]
[1769968568994,13.50256678,102.05,102.02,0.2]
[1769968569203,9.22487507,102.04,102.02,4.5940842]
[1769968569401,13.50256678,102.05,102.02,4.5940842]
[1769968569602,9.22487507,102.04,102.02,4.5940842]
[1769968569803,9.22487507,102.03,102.02,0.2]
[1769968570006,13.50256678,102.04,102.02,0.2]
[1769968570622,9.22487507,102.03,102.02,0.2]
[1769968570798,13.50256678,102.03,102.02,0.2]
[1769968570998,13.50256678,102.04,102.02,0.2]
[1769968571909,13.50256678,102.04,102.01,14.19696545]
[1769968572118,4.27769171,102.03,102.0,14.39759767]
[1769968572318,4.27769171,102.02,101.97,4.5940842]
[1769968572526,9.22487507,102.02,101.98,4.3940842]
[1769968572824,19.02434211,102.05,102.0,4.3940842]
[1769968572997,23.30203382,102.05,102.0,14.19724256]
[1769968573197,13.50256678,102.04,102.0,14.19724256]
[1769968573894,9.22487507,102.05,102.01,4.3940842]
[1769968574125,23.30113216,102.06,102.01,4.3940842]
[1769968574322,13.50256678,102.06,102.01,4.3940842]
[1769968574619,4.27769171,102.07,102.03,4.3940842]
[1769968574807,23.29912702,102.08,102.03,4.3940842]
[1769968575111,13.50256678,102.09,102.05,14.19320227]
[1769968580215,4.27769171,102.09,102.05,14.19320227]
[1769968580808,4.27769171,102.13,102.07,4.3940842]
[1769968581128,4.27769171,102.12,102.08,4.3940842]
[1769968582837,9.22487507,102.15,102.11,4.3940842]
[1769968583127,4.27769171,102.15,102.11,4.3940842]
[1769968584501,23.5688826,102.16,102.11,4.3940842]
[1769968584706,13.50256678,102.17,102.13,4.3940842]
[1769968585005,13.50256678,102.17,102.14,9.79048364]
[1769968585522,38.80716562,102.2,102.15,4.3940842]
[1769968585523,9.22487507,102.19,102.15,4.3940842]
[1769968585719,9.22487507,102.19,102.13,14.18508483]
[1769968585720,13.50256678,102.17,102.13,14.18508483]
[1769968586926,13.50256678,102.17,102.13,4.3940842]
[1769968588429,13.50256678,102.17,102.13,14.18459286]
[1769968588907,4.27769171,102.17,102.14,4.3940842]
[1769968589105,13.50256678,102.18,102.14,4.3940842]
[1769968590319,13.50256678,102.18,102.14,14.18423124]
[1769968590627,9.22487507,102.17,102.14,14.18423124]
[1769968594633,23.28928315,102.18,102.14,14.18423124]
[1769968595525,4.27769171,102.17,102.13,28.87268989]
[1769968595715,4.27769171,102.15,102.12,4.3940842]
[1769968597238,4.27769171,102.15,102.12,14.18617259]
[1769968599319,13.50256678,102.15,102.12,14.18617259]
[1769968600442,7.96510097,102.15,102.12,14.18617259]
[1769968603037,17.71246145,102.17,102.13,4.35630839]
[1769968603416,4.23682329,102.16,102.13,4.35630839]
[1769968604243,4.23682329,102.13,102.1,4.35630839]
[1769968604424,7.92423255,102.13,102.1,4.35630839]
[1769968604627,4.23682329,102.13,102.1,14.15015829]
[1769968606144,4.23682329,102.13,102.11,9.79323195]
[1769968607441,4.23682329,102.13,102.1,14.15012634]
[1769968612559,4.41698495,102.15,102.11,4.21481144]
[1769968612842,4.41698495,102.15,102.12,4.21481144]
[1769968613834,4.41698495,102.16,102.12,4.21481144]
[1769968614339,8.10556432,102.16,102.12,4.21481144]
[1769968614539,8.10556432,102.16,102.12,14.0064597]
[1769968615155,8.10556432,102.16,102.13,4.21481144]
[1769968616249,17.89430976,102.16,102.13,4.21481144]
[1769968616849,4.41698495,102.13,102.11,9.79288517]
[1769968617151,8.10556432,102.13,102.1,14.0085367]
[1769968619648,8.10556432,102.12,102.09,14.00962449]
[1769968620252,3.68857937,102.11,102.08,9.79596873]
[1769968620550,4.41698495,102.1,102.07,14.01191674]
[1769968620853,4.41698495,102.09,102.06,14.01244509]
[1769968621153,4.41698495,102.06,102.03,4.21481144]
[1769968621339,17.90380781,102.06,102.03,4.21481144]
[1769968621544,17.90380781,102.06,102.02,4.21481144]
[1769968621545,3.68857937,102.05,102.02,4.21481144]
[1769968622055,8.10556432,102.05,102.02,4.21481144]
[1769968622361,13.65366252,102.05,102.02,14.01678568]
[1769968623046,4.41698495,102.05,102.02,14.01678568]
[1769968623656,13.65366252,102.05,102.02,14.01678568]
[1769968624056,14.21445921,102.07,102.03,4.21481144]
[1769968624240,23.45113678,102.07,102.03,4.21481144]
[1769968624555,4.41698495,102.08,102.04,4.21481144]
[1769968624755,13.65366252,102.09,102.05,4.21481144]
[1769968625062,23.44915409,102.09,102.05,4.21481144]
[1769968626040,13.65366252,102.09,102.05,14.01340754]
[1769968626236,23.44912422,102.09,102.05,14.01340754]
[1769968626957,13.65366252,102.1,102.06,4.21481144]
[1769968627156,9.23667757,102.08,102.05,14.01340754]
[1769968627561,13.65366252,102.09,102.05,14.01340754]
[1769968627752,13.5232378,102.08,102.05,9.7985961]
[1769968628673,13.5232378,102.08,102.05,14.14965835]
[1769968630043,23.31965658,102.08,102.05,4.35106225]
[1769968630244,13.5232378,102.06,102.03,9.80063871]
[1769968630758,9.79733826,102.07,102.02,14.1526885]
[1769968630759,13.5232378,102.05,102.02,14.1526885]
[1769968631976,9.23667757,102.05,102.02,14.1526885]
[1769968632750,23.32142686,102.06,102.02,14.1526885]
[1769968633976,13.5232378,102.08,102.04,4.35106225]
[1769968634356,24.48870528,102.09,102.04,4.35106225]
[1769968634357,13.5232378,102.07,102.04,4.35106225]
[1769968634666,9.23667757,102.06,102.03,14.1513495]
[1769968635450,9.23667757,102.06,102.03,4.35106225]
[1769968635451,9.23667757,102.05,102.03,4.35106225]
[1769968636059,13.5232378,102.06,102.03,4.35106225]
[1769968636242,13.5232378,102.07,102.03,14.15179557]
[1769968636870,23.31992883,102.08,102.04,4.35106225]
[1769968638169,23.31992883,102.08,102.04,14.15056817]
[1769968638772,13.5232378,102.09,102.05,4.35106225]
[1769968639146,23.31864959,102.09,102.05,4.35106225]
[1769968640463,13.5232378,102.09,102.06,14.14922019]
[1769968641055,13.5232378,102.1,102.07,4.35106225]
[1769968641261,13.5232378,102.11,102.07,4.35106225]
[1769968641649,9.23667757,102.11,102.07,4.35106225]
[1769968641855,13.5232378,102.13,102.08,4.35106225]
[1769968642771,13.5232378,102.13,102.09,14.14634092]
[1769968643264,27.86724533,102.14,102.1,4.35106225]
[1769968643452,13.5232378,102.14,102.1,4.35106225]
[1769968643651,13.5232378,102.13,102.1,4.35106225]
[1769968644460,4.28656023,102.13,102.1,4.35106225]
[1769968644968,4.28656023,102.13,102.1,14.1447764]
[1769968646765,7.97539707,102.14,102.11,4.35106225]
[1769968646966,4.28656023,102.14,102.11,4.35106225]
[1769968647356,4.28656023,102.15,102.11,4.35106225]
[1769968648060,17.7650536,102.15,102.11,4.35106225]
[1769968648462,23.2953201,102.15,102.12,4.35106225]
[1769968649551,4.28656023,102.15,102.12,4.35106225]
[1769968650468,4.28656023,102.15,102.12,14.14332724]
[1769968651166,23.29470958,102.16,102.12,14.14332724]
[1769968651373,23.29470958,102.16,102.13,4.35106225]
[1769968651671,13.50566357,102.16,102.12,4.35106225]
[1769968652571,4.28656023,102.16,102.12,4.35106225]
[1769968652872,4.28656023,102.17,102.13,4.35106225]
[1769968654564,4.28656023,102.17,102.13,14.1417476]
[1769968655072,13.50566357,102.17,102.13,14.1417476]
[1769968656888,4.28656023,102.17,102.14,4.35106225]
[1769968657378,10.46782013,102.18,102.14,4.35106225]
[1769968657671,6.1812599,102.18,102.14,4.35106225]
[1769968657887,0.1,102.2,102.17,4.22440952]
[1769968658593,1e-08,102.2,102.19,4.22440952]
[1769968658783,0.1,102.22,102.19,4.22440952]
[1769968659075,4.15788932,102.22,102.19,4.22440952]
[1769968659254,0.1,102.22,102.19,4.22440952]
[1769968660662,0.1,102.22,102.21,4.22440952]
[1769968660864,6.19416944,102.24,102.21,4.22440952]
[1769968661959,6.19416944,102.24,102.21,13.44351286]
[1769968662162,6.19416944,102.24,102.22,4.22440952]
[1769968663380,6.19416944,102.24,102.22,14.00637905]
[1769968664783,10.25205876,102.24,102.22,9.78196953]
[1769968665781,6.19416944,102.24,102.22,14.18060791]
[1769968670759,10.46239106,102.24,102.21,28.85756482]
[1769968670965,7.94825451,102.22,102.19,4.39863838]
[1769968671272,7.94825451,102.22,102.19,14.1838726]
[1769968672072,7.94825451,102.21,102.18,14.12001008]
[1769968672264,4.26822162,102.21,102.18,14.12001008]
[1769968676375,7.94825451,102.23,102.19,4.39863838]
[1769968677470,4.26822162,102.21,102.18,14.18501008]
[1769968677678,7.94825451,102.21,102.18,14.18501008]
[1769968677882,4.26822162,102.21,102.18,14.18501008]
[1769968680783,4.26822162,102.19,102.16,4.39863838]
[1769968680981,4.26822162,102.19,102.16,14.18670048]
[1769968681194,4.26822162,102.19,102.17,9.78758944]
[1769968681368,4.26822162,102.19,102.16,14.18665392]
[1769968681770,4.26822162,102.17,102.14,4.39863838]
[1769968682485,7.94825451,102.16,102.12,4.39863838]
[1769968682786,4.26822162,102.17,102.14,14.1885391]
[1769968683097,4.26822162,102.19,102.16,14.18720533]
[1769968684806,3.68003289,102.2,102.17,4.39863838]
[1769968684986,24.12738081,102.22,102.17,4.39863838]
[1769968684987,4.26822162,102.21,102.17,4.39863838]
[1769968685502,7.94825451,102.2,102.17,4.39863838]
[1769968685682,4.26822162,102.2,102.17,4.39863838]
[1769968686075,4.26822162,102.2,102.17,14.18570218]
[1769968686883,7.94825451,102.21,102.17,14.18570218]
[1769968688286,7.94825451,102.21,102.17,38.65472439]
[1769968688491,8.03386847,102.21,102.17,38.65472439]
[1769968689278,17.81776753,102.21,102.17,38.65472439]
[1769968689990,14.13773464,102.21,102.18,4.12877705]
[1769968690287,8.03386847,102.21,102.18,4.12877705]
[1769968691798,14.13718288,102.22,102.19,4.12877705]
[1769968692000,8.03386847,102.21,102.18,13.91529302]
[1769968694789,3.68003289,102.2,102.18,13.91529302]
[1769968698695,8.03386847,102.2,102.17,4.12877705]
[1769968698901,3.68003289,102.18,102.16,4.12877705]
[1769968699893,4.35383558,102.18,102.17,9.78760888]
[1769968700201,8.03386847,102.19,102.17,9.78760888]
[1769968703705,8.03386847,102.19,102.16,38.38805806]
[1769968703908,4.35383558,102.18,102.16,13.91682635]
[1769968704504,8.03386847,102.19,102.16,13.91682635]
[1769968704906,8.03386847,102.19,102.16,34.25946668]
[1769968705113,4.35383558,102.19,102.17,4.12877705]
[1769968705490,8.03386847,102.19,102.17,4.12877705]
[1769968706607,4.35383558,102.19,102.17,4.12877705]
[1769968706811,8.03386847,102.21,102.18,4.12877705]
[1769968707808,8.03386847,102.22,102.18,4.12877705]
[1769968708112,4.35383558,102.21,102.19,9.78569331]
[1769968708805,8.03386847,102.22,102.19,13.91447036]
[1769968713817,4.35383558,102.21,102.19,9.78569331]
[1769968714027,4.35383558,102.19,102.15,4.12877705]
[1769968714204,8.03386847,102.18,102.15,13.91763777]
[1769968718726,8.03386847,102.18,102.16,4.11202669]
[1769968718727,3.68003289,102.18,102.16,4.11202669]
[1769968718923,22.36543456,102.22,102.16,4.11202669]
[1769968719129,3.68003289,102.2,102.16,4.11202669]
[1769968719725,3.68003289,102.21,102.16,4.11202669]
[1769968720732,9.78320089,102.22,102.16,4.11202669]
[1769968720733,3.68003289,102.2,102.17,13.89963557]
[1769968722927,8.05702596,102.21,102.18,4.11202669]
[1769968724728,8.05702596,102.21,102.18,13.89822534]
[1769968725928,8.12868173,102.22,102.19,4.05210198]
[1769968727034,8.12868173,102.22,102.19,13.83742637]
[1769968729024,3.68003289,102.21,102.18,9.78606906]
[1769968729231,8.12868173,102.2,102.18,9.78606906]
[1769968730534,8.13229942,102.2,102.18,9.78606906]
[1769968730728,4.44864884,102.2,102.18,9.78606906]
[1769968731647,4.44864884,102.2,102.18,13.83817104]
[1769968731828,3.68365058,102.22,102.19,4.05210198]
[1769968732140,8.13229942,102.22,102.19,4.05210198]
[1769968733239,3.68365058,102.21,102.19,13.83775857]
[1769968734631,9.78231419,102.23,102.2,4.05210198]
[1769968734845,3.68365058,102.23,102.2,4.05210198]
[1769968735138,8.13229942,102.22,102.2,9.78427461]
[1769968735323,4.44864884,102.2,102.18,9.78612144]
[1769968735528,8.13229942,102.2,102.18,9.78612144]
[1769968736439,4.44864884,102.2,102.18,9.78612144]
[1769968736938,4.44864884,102.2,102.18,13.83822342]
[1769968739138,8.13229942,102.22,102.19,4.05210198]
[1769968739839,8.13229942,102.23,102.19,4.05210198]
[1769968741025,8.13229942,102.23,102.2,13.83683779]
[1769968741420,14.44400753,102.25,102.21,4.05210198]
[1769968741622,3.78365058,102.25,102.21,4.05210198]
[1769968741836,8.13229942,102.23,102.2,13.83683779]
[1769968742142,8.13229942,102.22,102.19,13.83727396]
[1769968742345,8.13229942,102.23,102.2,4.05210198]
[1769968742542,8.13229942,102.24,102.2,4.05210198]
[1769968743128,8.23229942,102.25,102.22,4.05210198]
[1769968744739,18.01229687,102.25,102.22,4.05210198]
[1769968745050,3.68365058,102.24,102.22,4.05210198]
[1769968745548,3.68365058,102.24,102.22,13.83435525]
[1769968746252,8.23229942,102.25,102.22,13.83435525]
[1769968748644,4.54864884,102.25,102.22,13.83435525]
[1769968749963,0.1,102.25,102.23,4.10276103]
[1769968751053,0.1,102.25,102.23,13.88439653]
[1769968752341,3.80019481,102.26,102.24,4.10276103]
[1769968753037,3.80019481,102.26,102.24,13.88292364]
[1769968753245,1e-08,102.26,102.25,4.10276103]
[1769968753566,10.52760473,102.3,102.26,4.10276103]
[1769968753736,4.16592884,102.29,102.26,4.10276103]
[1769968753937,10.52760473,102.3,102.27,4.10276103]
[1769968754140,6.36167589,102.3,102.27,4.10276103]
[1769968754745,1e-08,102.3,102.28,4.10276103]
[1769968755057,13.93541218,102.36,102.32,4.10276103]
[1769968755361,4.16592884,102.35,102.32,4.10276103]
[1769968755558,3.68365058,102.37,102.32,4.10276103]
[1769968755748,7.84957942,102.37,102.33,4.10276103]
[1769968755936,10.41142458,102.38,102.35,4.10276103]
[1769968756139,10.41142458,102.38,102.32,4.10276103]
[1769968756339,14.09507516,102.38,102.34,4.10276103]
[1769968756569,14.09507516,102.38,102.35,4.10276103]
[1769968756570,10.41142458,102.38,102.35,4.10276103]
[1769968757146,10.41142458,102.38,102.36,9.76944118]
[1769968757366,10.41142458,102.38,102.35,13.87271023]
[1769968757864,6.24549574,102.38,102.35,13.87271023]
[1769968758742,10.41142458,102.38,102.35,13.87271023]
[1769968759154,6.24549574,102.38,102.36,13.87152961]
[1769968759647,10.41142458,102.38,102.35,9.76993259]
[1769968761066,4.16592884,102.36,102.31,24.43390703]
[1769968761254,7.84957942,102.36,102.31,3.68365058]
[1769968761564,14.09507516,102.38,102.33,3.68365058]
[1769968761860,14.09507516,102.38,102.34,4.10276103]
[1769968762291,4.16592884,102.37,102.34,4.10276103]
[1769968763169,4.16592884,102.37,102.34,13.87319826]
[1769968763375,5.10398995,102.43,102.38,4.10276103]
[1769968763551,4.16592884,102.42,102.38,7.78641161]
[1769968763748,4.16592884,102.43,102.39,7.78641161]
[1769968764074,4.16592884,102.44,102.4,4.10276103]
[1769968764279,4.16592884,102.44,102.4,7.78641161]
[1769968764570,7.84957942,102.44,102.4,4.10276103]
[1769968764947,4.16592884,102.43,102.36,4.10276103]
[1769968765152,4.16592884,102.42,102.39,9.76657876]
[1769968765367,4.16592884,102.41,102.38,9.76720797]
[1769968765763,4.16592884,102.42,102.39,3.68365058]
[1769968765964,4.16592884,102.44,102.41,4.10276103]
[1769968766158,4.16592884,102.44,102.4,4.10276103]
[1769968766360,7.84957942,102.44,102.4,4.10276103]
[1769968767365,3.68365058,102.43,102.38,32.20524341]
[1769968767564,9.76236878,102.44,102.38,32.20524341]
[1769968767565,7.84957942,102.42,102.38,28.52159283]
[1769968768267,7.84957942,102.42,102.39,9.76641896]
[1769968768768,4.16592884,102.42,102.39,9.76641896]
[1769968769357,3.68365058,102.43,102.39,13.86917999]
[1769968769563,4.16592884,102.43,102.39,41.96927748]
[1769968769757,4.16592884,102.44,102.4,4.10276103]
[1769968770075,7.84957942,102.44,102.4,4.10276103]
[1769968770876,7.84957942,102.44,102.4,13.86757727]
[1769968771074,9.83201581,102.45,102.41,4.10276103]
[1769968771253,3.68365058,102.44,102.4,38.28163977]
[1769968771457,7.84957942,102.44,102.4,13.86757727]
[1769968771757,4.16592884,102.44,102.41,4.10276103]
[1769968772275,4.16592884,102.43,102.4,13.86757727]
[1769968772771,4.16592884,102.44,102.41,4.10276103]
[1769968773174,4.16592884,102.44,102.4,41.96529035]
[1769968773700,6.14836523,102.45,102.42,4.10276103]
[1769968774163,4.16592884,102.46,102.43,4.10276103]
[1769968774775,4.16592884,102.46,102.43,13.8647076]
[1769968775093,7.84957942,102.47,102.43,13.8647076]
[1769968775582,4.16592884,102.46,102.42,13.86604992]
[1769968775798,4.16592884,102.44,102.41,9.76423619]
[1769968776482,4.16592884,102.44,102.41,13.86699722]
[1769968776677,7.84957942,102.45,102.42,9.76370597]
[1769968777492,4.16592884,102.45,102.42,9.76370597]
[1769968777785,4.42420948,102.43,102.39,8.12574832]
[1769968777956,4.42420948,102.43,102.39,14.20837166]
[1769968778156,8.10786006,102.43,102.39,14.20837166]
[1769968778880,8.10786006,102.43,102.4,9.76553763]
[1769968780668,4.42420948,102.42,102.4,9.76553763]
[1769968780878,8.10786006,102.43,102.4,14.20763537]
[1769968781193,4.42420948,102.43,102.4,14.20763537]
[1769968782485,4.42420948,102.43,102.4,9.76553763]
[1769968783665,4.42420948,102.43,102.4,4.44209774]
[1769968784191,4.42420948,102.43,102.39,42.30822359]
[1769968784760,4.42420948,102.45,102.41,4.44209774]
[1769968785278,4.36561398,102.46,102.42,4.39903989]
[1769968785477,4.36561398,102.46,102.43,4.39903989]
[1769968785692,0.1,102.49,102.47,4.39903989]
[1769968785982,1e-08,102.49,102.47,8.08269047]
[1769968786286,10.48886362,102.53,102.49,4.39903989]
[1769968786594,10.48886362,102.53,102.49,8.08269047]
[1769968786885,4.36561398,102.54,102.51,8.08269047]
[1769968787085,37.2510062,102.61,102.47,27.12]
[1769968787086,5.09622457,102.6,102.53,4.39903989]
[1769968787278,3.68365058,102.57,102.52,3.68365058]
[1769968787480,37.79687401,102.6,102.52,3.68365058]
[1769968787692,3.68365058,102.57,102.53,9.75324295]
[1769968788075,3.68365058,102.56,102.52,14.1527641]
[1769968788274,3.68365058,102.56,102.51,8.08269047]
[1769968788579,9.1460488,102.54,102.49,4.39903989]
[1769968788774,9.1460488,102.53,102.49,14.15557018]
[1769968788985,9.1460488,102.53,102.48,14.15672723]
[1769968789291,4.36561398,102.52,102.48,14.15672723]
[1769968789475,9.1460488,102.53,102.5,4.39903989]
[1769968789681,9.1460488,102.55,102.51,14.15362509]
[1769968789889,9.75131488,102.56,102.51,14.15362509]
[1769968790084,18.89736368,102.56,102.51,14.15362509]
[1769968790471,18.8977216,102.56,102.51,14.15362509]
[1769968790672,9.14640672,102.55,102.51,14.15362509]
[1769968791393,18.89805485,102.55,102.51,14.15362509]
[1769968791775,4.36561398,102.55,102.51,14.15362509]
[1769968791975,4.36561398,102.58,102.52,4.39903989]
[1769968792190,13.5120207,102.57,102.53,4.39903989]
[1769968792472,4.36561398,102.57,102.54,4.39903989]
[1769968792901,4.36561398,102.57,102.54,14.150635]
[1769968793200,13.5120207,102.58,102.54,14.150635]
[1769968793405,9.74792894,102.59,102.54,18.89800183]
[1769968793406,13.5120207,102.59,102.54,18.89800183]
[1769968793575,13.5120207,102.59,102.55,4.39903989]
[1769968794399,13.5120207,102.58,102.54,14.150635]
[1769968794903,9.14640672,102.57,102.54,4.39903989]
[1769968795202,9.14640672,102.56,102.53,9.75288586]
[1769968795507,13.5120207,102.56,102.52,14.15279558]
[1769968795995,9.14640672,102.55,102.52,14.15279558]
[1769968796496,4.36561398,102.56,102.53,9.75322875]
[1769968797282,13.5120207,102.54,102.5,4.39903989]
[1769968797970,13.5120207,102.54,102.5,14.15467094]
[1769968798775,13.5120207,102.52,102.48,14.15668898]
[1769968798981,4.36561398,102.53,102.49,13.54544661]
[1769968799176,4.36561398,102.53,102.5,14.15455232]
[1769968799577,23.2638253,102.55,102.5,13.54544661]
[1769968799784,4.36561398,102.54,102.5,23.30105594]
[1769968799989,9.14640672,102.55,102.51,4.39903989]
[1769968800282,23.26339766,102.55,102.51,4.39903989]
[1769968800489,4.36561398,102.52,102.49,9.75665218]
[1769968800694,13.5120207,102.53,102.49,14.15569207]
[1769968801093,9.14640672,102.52,102.49,14.15569207]
[1769968802191,23.26563607,102.53,102.49,14.15569207]
[1769968802400,13.5120207,102.52,102.49,14.15569207]
[1769968802984,14.11922935,102.53,102.49,14.15569207]
[1769968803179,13.5120207,102.55,102.5,4.39903989]
[1769968803383,23.26282134,102.56,102.52,4.39903989]
[1769968803604,14.11641462,102.56,102.52,4.39903989]
[1769968803787,23.26194563,102.57,102.53,4.39903989]
[1769968803986,14.11553891,102.57,102.53,4.39903989]